{"text_format":"1","workbook":"xlsx","n_sheets":3,"sheets":["Dane_prowadzącego","Dane_uczestników sem 1","Obecności sem 1"],"not_rendered":{"charts":0,"images":2,"macros":1,"external_links":0,"defined_names":2,"comments":0,"pivot_tables":0},"unopened":[],"bounds":{"document_bytes":16777216,"sheet_cells":100000,"rows_first":2000,"rows_last":500,"rows_between":2000,"halvings":0,"cell_chars":16384,"cell_head_chars":4096},"cells_cut":0,"cells_raw":0,"read":"whole","date_system":"1900"}

{"sheet":"Dane_prowadzącego","index":0,"n_rows":59,"n_cols":7,"rows_kept":59,"cut":false,"hidden":false,"merged":[[8,1,8,2],[0,1,0,2]]}
["LP","Dane osoby prowadzącej zajęcia.",null,null,"wybierz","wybierz","wybierz"]
[1,"nazwisko","wpisz",null,"kobieta","TAK","akrobatyka sportowa"]
[2,"imię","wpisz",null,"mężczyzna","NIE","badminton"]
[3,"data urodzenia RRRR-MM-DD","wpisz",null,null,null,"baseball"]
[4,"telefon kontaktowy","wpisz",null,null,null,"biathlon"]
[5,"adres @","wpisz",null,null,null,"bilard"]
[6,"płeć","wybierz",null,null,null,"boks"]
[7,"Czy nauczycielka/el jest trenerem i prowadzi zajęcia w klubie sportowym?","wybierz",null,null,null,"brydż sportowy"]
[null,"Uwaga wiersze poniżej należy wypełnić w przypadku zaznaczenia opcji TAK powyżej.",null,null,null,null,"curling"]
[8,"Dyscypliny sportowe prowadzone przez nauczyciela w innym klubie","Wybierz",null,null,null,"gimnsatyka artystyczna"]
[9,"Dyscypliny sportowe prowadzone przez nauczyciela w innym klubie","Wybierz",null,null,null,"gimnastyka sportowa"]
[null,null,null,null,null,null,"hokej na lodzie"]
[null,null,null,null,null,null,"hokej na trawie"]
[null,null,null,null,null,null,"jeździectwo"]
[null,null,null,null,null,null,"judo"]
[null,null,null,null,null,null,"kajak polo"]
[null,null,null,null,null,null,"kajakarstwo klasyczne"]
[null,null,null,null,null,null,"kajakarstwo slalomowe"]
[null,null,null,null,null,null,"karate"]
[null,null,null,null,null,null,"kickboxing"]
[null,null,null,null,null,null,"kolarstwo"]
[null,null,null,null,null,null,"koszykówka"]
[null,null,null,null,null,null,"kręglarstwo"]
[null,null,null,null,null,null,"lekkoatletyka"]
[null,null,null,null,null,null,"łucznictwo"]
[null,null,null,null,null,null,"łyżwiarstwo figurowe"]
[null,null,null,null,null,null,"łyżwiarstwo szybkie"]
[null,null,null,null,null,null,"narciarstwo alpejskie"]
[null,null,null,null,null,null,"narciarstwo klasyczne"]
[null,null,null,null,null,null,"orientacja sportowa"]
[null,null,null,null,null,null,"pięciobój nowoczesny"]
[null,null,null,null,null,null,"piłka nożna"]
[null,null,null,null,null,null,"piłka ręczna"]
[null,null,null,null,null,null,"piłka siatkowa"]
[null,null,null,null,null,null,"piłka siatkowa plażowa"]
[null,null,null,null,null,null,"piłka wodna"]
[null,null,null,null,null,null,"pływanie"]
[null,null,null,null,null,null,"pływanie synchroniczne"]
[null,null,null,null,null,null,"podnoszenie ciężarów"]
[null,null,null,null,null,null,"rugby"]
[null,null,null,null,null,null,"skoki do wody"]
[null,null,null,null,null,null,"snowboard"]
[null,null,null,null,null,null,"sporty motorowe"]
[null,null,null,null,null,null,"sporty saneczkowe"]
[null,null,null,null,null,null,"sporty wrotkarskie"]
[null,null,null,null,null,null,"strzelectwo sportowe"]
[null,null,null,null,null,null,"sumo"]
[null,null,null,null,null,null,"szachy"]
[null,null,null,null,null,null,"szermierka"]
[null,null,null,null,null,null,"taekwondo"]
[null,null,null,null,null,null,"tenis"]
[null,null,null,null,null,null,"tenis stołowy"]
[null,null,null,null,null,null,"triathlon"]
[null,null,null,null,null,null,"unihokej"]
[null,null,null,null,null,null,"warcaby"]
[null,null,null,null,null,null,"wioślarstwo"]
[null,null,null,null,null,null,"zapasy"]
[null,null,null,null,null,null,"żeglarstwo"]
[null,null,null,null,null,null,"inne"]

{"sheet":"Dane_uczestników sem 1","index":1,"n_rows":63,"n_cols":28,"rows_kept":63,"cut":false,"hidden":false,"merged":[[0,1,0,9],[1,1,1,3],[1,4,1,5],[1,7,2,7],[1,8,2,8],[1,9,2,9]]}
[null,"TYMCZASOWY DZIENNIK SKS",null,null,null,null,null,null,null,null,null,null,"wybierz",null,null,"wybierz",null,"wybierz","wybierz","wybierz","wybierz",null,null,null,null,null,"wybierz"]
[null,"Instrukcja (zaznacz komórkę)",null,null,"Koniec tworzenia listy",null,null,"Czy uczestniczka/k zajęć  posiada licencje polskiego związku sportowego","Czy uczestniczka/k biorą udział  w innych zajęciach sportowych","Jeśli uczestnik bierze udział w innych zajęciach sportowych  zaznacz w jakich",null,null,"woj. dolnośląskie",null,null,"podstawowa",null,"TAK","kobieta","grupa 1","Poniedziałek",null,null,null,null,"gg",0,"wybierz"]
[null,"Lp.","imię","nazwisko","data urodzenia RRRR-MM-DD","płeć","grupa ",null,null,null,null,null,"woj. kujawsko-pomorskie",null,null,"gimnazjalna",null,"NIE","mężczyzna","grupa 2","Wtorek",null,null,null,null,1,1,"akrobatyka sportowa"]
[1,{"$f":"SUBTOTAL(109,$A$4:A4)","v":1},null,null,null,"wybierz","wybierz","wybierz","wybierz","wybierz",null,null,"woj. lubelskie",null,null,"ponadgimnazjalna",null,null,null,null,"Środa",null,null,null,null,2,2,"badminton"]
[1,{"$f":"SUBTOTAL(109,$A$4:A5)","v":2},null,null,null,"wybierz","wybierz","wybierz","wybierz","wybierz",null,null,"woj. lubuskie",null,null,null,null,null,null,null,"Czwartek",null,null,null,null,3,3,"baseball"]
[1,{"$f":"SUBTOTAL(109,$A$4:A6)","v":3},null,null,null,"wybierz","wybierz","wybierz","wybierz","wybierz",null,null,"woj. łódzkie",null,null,null,null,null,null,null,"Piątek",null,null,null,null,4,4,"biathlon"]
[1,{"$f":"SUBTOTAL(109,$A$4:A7)","v":4},null,null,null,"wybierz","wybierz","wybierz","wybierz","wybierz",null,null,"woj. małopolskie",null,null,null,null,null,null,null,"Sobota",null,null,null,null,5,5,"bilard"]
[1,{"$f":"SUBTOTAL(109,$A$4:A8)","v":5},null,null,null,"wybierz","wybierz","wybierz","wybierz","wybierz",null,null,"woj. mazowieckie",null,null,null,null,null,null,null,"Niedziela",null,null,null,null,6,6,"boks"]
[1,{"$f":"SUBTOTAL(109,$A$4:A9)","v":6},null,null,null,"wybierz","wybierz","wybierz","wybierz","wybierz",null,null,"woj. opolskie",null,null,"+","Obecny",null,null,null,null,null,null,null,null,7,7,"brydż sportowy"]
[1,{"$f":"SUBTOTAL(109,$A$4:A10)","v":7},null,null,null,"wybierz","wybierz","wybierz","wybierz","wybierz",null,null,"woj. podkarpackie",null,null,"-","Nieobecny",null,null,null,null,null,null,null,null,8,8,"curling"]
[1,{"$f":"SUBTOTAL(109,$A$4:A11)","v":8},null,null,null,"wybierz","wybierz","wybierz","wybierz","wybierz",null,null,"woj. podlaskie",null,null,null,"Nieobecny usprawiedliwony",null,null,null,null,null,null,null,null,9,9,"gimnsatyka artystyczna"]
[1,{"$f":"SUBTOTAL(109,$A$4:A12)","v":9},null,null,null,"wybierz","wybierz","wybierz","wybierz","wybierz",null,null,"woj. pomorskie",null,null,null,null,null,null,null,null,null,null,null,null,10,10,"gimnastyka sportowa"]
[1,{"$f":"SUBTOTAL(109,$A$4:A13)","v":10},null,null,null,"wybierz","wybierz","wybierz","wybierz","wybierz",null,null,"woj. śląskie",null,null,null,null,null,null,null,null,null,null,null,null,11,11,"hokej na lodzie"]
[1,{"$f":"SUBTOTAL(109,$A$4:A14)","v":11},null,null,null,"wybierz","wybierz","wybierz","wybierz","wybierz",null,null,"woj. świętokrzyskie",null,null,null,null,null,null,null,null,null,null,null,null,12,12,"hokej na trawie"]
[1,{"$f":"SUBTOTAL(109,$A$4:A15)","v":12},null,null,null,"wybierz","wybierz","wybierz","wybierz","wybierz",null,null,"woj. warmińsko-mazurskie",null,null,null,null,null,null,null,null,null,null,null,null,13,13,"jeździectwo"]
[1,{"$f":"SUBTOTAL(109,$A$4:A16)","v":13},null,null,null,"wybierz","wybierz","wybierz","wybierz","wybierz",null,null,"woj. wielkopolskie",null,null,null,null,null,null,null,null,null,null,null,null,14,14,"judo"]
[1,{"$f":"SUBTOTAL(109,$A$4:A17)","v":14},null,null,null,"wybierz","wybierz","wybierz","wybierz","wybierz",null,null,"woj. zachodniopomorskie",null,null,null,null,null,null,null,null,null,null,null,null,15,15,"kajak polo"]
[1,{"$f":"SUBTOTAL(109,$A$4:A18)","v":15},null,null,null,"wybierz","wybierz","wybierz","wybierz","wybierz",null,null,null,null,null,null,null,null,null,null,null,null,null,null,null,16,16,"kajakarstwo klasyczne"]
[1,{"$f":"SUBTOTAL(109,$A$4:A19)","v":16},null,null,null,"wybierz","wybierz","wybierz","wybierz","wybierz",null,null,null,null,null,null,null,null,null,null,null,null,null,null,null,17,17,"kajakarstwo slalomowe"]
[1,{"$f":"SUBTOTAL(109,$A$4:A20)","v":17},null,null,null,"wybierz","wybierz","wybierz","wybierz","wybierz",null,null,null,null,null,null,null,null,null,null,null,null,null,null,null,18,18,"karate"]
[1,{"$f":"SUBTOTAL(109,$A$4:A21)","v":18},null,null,null,"wybierz","wybierz","wybierz","wybierz","wybierz",null,null,null,null,null,null,null,null,null,null,null,null,null,null,null,19,19,"kickboxing"]
[1,{"$f":"SUBTOTAL(109,$A$4:A22)","v":19},null,null,null,"wybierz","wybierz","wybierz","wybierz","wybierz",null,null,null,null,null,null,null,null,null,null,null,null,null,null,null,20,20,"kolarstwo"]
[1,{"$f":"SUBTOTAL(109,$A$4:A23)","v":20},null,null,null,"wybierz","wybierz","wybierz","wybierz","wybierz",null,null,null,null,null,null,null,null,null,null,null,null,null,null,null,21,21,"koszykówka"]
[1,{"$f":"SUBTOTAL(109,$A$4:A24)","v":21},null,null,null,"wybierz","wybierz","wybierz","wybierz","wybierz",null,null,null,null,null,null,null,null,null,null,null,null,null,null,null,22,22,"kręglarstwo"]
[1,{"$f":"SUBTOTAL(109,$A$4:A25)","v":22},null,null,null,"wybierz","wybierz","wybierz","wybierz","wybierz",null,null,null,null,null,null,null,null,null,null,null,null,null,null,null,23,23,"lekkoatletyka"]
[1,{"$f":"SUBTOTAL(109,$A$4:A26)","v":23},null,null,null,"wybierz","wybierz","wybierz","wybierz","wybierz",null,null,null,null,null,null,null,null,null,null,null,null,null,null,null,24,24,"łucznictwo"]
[1,{"$f":"SUBTOTAL(109,$A$4:A27)","v":24},null,null,null,"wybierz","wybierz","wybierz","wybierz","wybierz",null,null,null,null,null,null,null,null,null,null,null,null,null,null,null,null,25,"łyżwiarstwo figurowe"]
[1,{"$f":"SUBTOTAL(109,$A$4:A28)","v":25},null,null,null,"wybierz","wybierz","wybierz","wybierz","wybierz",null,null,null,null,null,null,null,null,null,null,null,null,null,null,null,null,26,"łyżwiarstwo szybkie"]
[1,{"$f":"SUBTOTAL(109,$A$4:A29)","v":26},null,null,null,"wybierz","wybierz","wybierz","wybierz","wybierz",null,null,null,null,null,null,null,null,null,null,null,null,null,null,null,null,27,"narciarstwo alpejskie"]
[1,{"$f":"SUBTOTAL(109,$A$4:A30)","v":27},null,null,null,"wybierz","wybierz","wybierz","wybierz","wybierz",null,null,null,null,null,null,null,null,null,null,null,null,null,null,null,null,28,"narciarstwo klasyczne"]
[1,{"$f":"SUBTOTAL(109,$A$4:A31)","v":28},null,null,null,"wybierz","wybierz","wybierz","wybierz","wybierz",null,null,null,null,null,null,null,null,null,null,null,null,null,null,null,null,29,"orientacja sportowa"]
[1,{"$f":"SUBTOTAL(109,$A$4:A32)","v":29},null,null,null,"wybierz","wybierz","wybierz","wybierz","wybierz",null,null,null,null,null,null,null,null,null,null,null,null,null,null,null,null,30,"pięciobój nowoczesny"]
[1,{"$f":"SUBTOTAL(109,$A$4:A33)","v":30},null,null,null,"wybierz","wybierz","wybierz","wybierz","wybierz",null,null,null,null,null,null,null,null,null,null,null,null,null,null,null,null,31,"piłka nożna"]
[1,{"$f":"SUBTOTAL(109,$A$4:A34)","v":31},null,null,null,"wybierz","wybierz","wybierz","wybierz","wybierz",null,null,null,null,null,null,null,null,null,null,null,null,null,null,null,null,32,"piłka ręczna"]
[1,{"$f":"SUBTOTAL(109,$A$4:A35)","v":32},null,null,null,"wybierz","wybierz","wybierz","wybierz","wybierz",null,null,null,null,null,null,null,null,null,null,null,null,null,null,null,null,33,"piłka siatkowa"]
[1,{"$f":"SUBTOTAL(109,$A$4:A36)","v":33},null,null,null,"wybierz","wybierz","wybierz","wybierz","wybierz",null,null,null,null,null,null,null,null,null,null,null,null,null,null,null,null,34,"piłka siatkowa plażowa"]
[1,{"$f":"SUBTOTAL(109,$A$4:A37)","v":34},null,null,null,"wybierz","wybierz","wybierz","wybierz","wybierz",null,null,null,null,null,null,null,null,null,null,null,null,null,null,null,null,35,"piłka wodna"]
[1,{"$f":"SUBTOTAL(109,$A$4:A38)","v":35},null,null,null,"wybierz","wybierz","wybierz","wybierz","wybierz",null,null,null,null,null,null,null,null,null,null,null,null,null,null,null,null,36,"pływanie"]
[1,{"$f":"SUBTOTAL(109,$A$4:A39)","v":36},null,null,null,"wybierz","wybierz","wybierz","wybierz","wybierz",null,null,null,null,null,null,null,null,null,null,null,null,null,null,null,null,37,"pływanie synchroniczne"]
[1,{"$f":"SUBTOTAL(109,$A$4:A40)","v":37},null,null,null,"wybierz","wybierz","wybierz","wybierz","wybierz",null,null,null,null,null,null,null,null,null,null,null,null,null,null,null,null,38,"podnoszenie ciężarów"]
[1,{"$f":"SUBTOTAL(109,$A$4:A41)","v":38},null,null,null,"wybierz","wybierz","wybierz","wybierz","wybierz",null,null,null,null,null,null,null,null,null,null,null,null,null,null,null,null,39,"rugby"]
[1,{"$f":"SUBTOTAL(109,$A$4:A42)","v":39},null,null,null,"wybierz","wybierz","wybierz","wybierz","wybierz",null,null,null,null,null,null,null,null,null,null,null,null,null,null,null,null,40,"skoki do wody"]
[1,{"$f":"SUBTOTAL(109,$A$4:A43)","v":40},null,null,null,"wybierz","wybierz","wybierz","wybierz","wybierz",null,null,null,null,null,null,null,null,null,null,null,null,null,null,null,null,41,"snowboard"]
[1,{"$f":"SUBTOTAL(109,$A$4:A44)","v":41},null,null,null,"wybierz","wybierz","wybierz","wybierz","wybierz",null,null,null,null,null,null,null,null,null,null,null,null,null,null,null,null,42,"sporty motorowe"]
[1,{"$f":"SUBTOTAL(109,$A$4:A45)","v":42},null,null,null,"wybierz","wybierz","wybierz","wybierz","wybierz",null,null,null,null,null,null,null,null,null,null,null,null,null,null,null,null,43,"sporty saneczkowe"]
[1,{"$f":"SUBTOTAL(109,$A$4:A46)","v":43},null,null,null,"wybierz","wybierz","wybierz","wybierz","wybierz",null,null,null,null,null,null,null,null,null,null,null,null,null,null,null,null,44,"sporty wrotkarskie"]
[1,{"$f":"SUBTOTAL(109,$A$4:A47)","v":44},null,null,null,"wybierz","wybierz","wybierz","wybierz","wybierz",null,null,null,null,null,null,null,null,null,null,null,null,null,null,null,null,45,"strzelectwo sportowe"]
[1,{"$f":"SUBTOTAL(109,$A$4:A48)","v":45},null,null,null,"wybierz","wybierz","wybierz","wybierz","wybierz",null,null,null,null,null,null,null,null,null,null,null,null,null,null,null,null,46,"sumo"]
[1,{"$f":"SUBTOTAL(109,$A$4:A49)","v":46},null,null,null,"wybierz","wybierz","wybierz","wybierz","wybierz",null,null,null,null,null,null,null,null,null,null,null,null,null,null,null,null,47,"szachy"]
[1,{"$f":"SUBTOTAL(109,$A$4:A50)","v":47},null,null,null,"wybierz","wybierz","wybierz","wybierz","wybierz",null,null,null,null,null,null,null,null,null,null,null,null,null,null,null,null,48,"szermierka"]
[1,{"$f":"SUBTOTAL(109,$A$4:A51)","v":48},null,null,null,"wybierz","wybierz","wybierz","wybierz","wybierz",null,null,null,null,null,null,null,null,null,null,null,null,null,null,null,null,49,"taekwondo"]
[1,{"$f":"SUBTOTAL(109,$A$4:A52)","v":49},null,null,null,"wybierz","wybierz","wybierz","wybierz","wybierz",null,null,null,null,null,null,null,null,null,null,null,null,null,null,null,null,50,"tenis"]
[1,{"$f":"SUBTOTAL(109,$A$4:A53)","v":50},null,null,null,"wybierz","wybierz","wybierz","wybierz","wybierz",null,null,null,null,null,null,null,null,null,null,null,null,null,null,null,null,51,"tenis stołowy"]
[1,{"$f":"SUBTOTAL(109,$A$4:A54)","v":51},null,null,null,"wybierz","wybierz","wybierz","wybierz","wybierz",null,null,null,null,null,null,null,null,null,null,null,null,null,null,null,null,52,"triathlon"]
[1,{"$f":"SUBTOTAL(109,$A$4:A55)","v":52},null,null,null,"wybierz","wybierz","wybierz","wybierz","wybierz",null,null,null,null,null,null,null,null,null,null,null,null,null,null,null,null,53,"unihokej"]
[1,{"$f":"SUBTOTAL(109,$A$4:A56)","v":53},null,null,null,"wybierz","wybierz","wybierz","wybierz","wybierz",null,null,null,null,null,null,null,null,null,null,null,null,null,null,null,null,54,"warcaby"]
[1,{"$f":"SUBTOTAL(109,$A$4:A57)","v":54},null,null,null,"wybierz","wybierz","wybierz","wybierz","wybierz",null,null,null,null,null,null,null,null,null,null,null,null,null,null,null,null,55,"wioślarstwo"]
[1,{"$f":"SUBTOTAL(109,$A$4:A58)","v":55},null,null,null,"wybierz","wybierz","wybierz","wybierz","wybierz",null,null,null,null,null,null,null,null,null,null,null,null,null,null,null,null,56,"zapasy"]
[1,{"$f":"SUBTOTAL(109,$A$4:A59)","v":56},null,null,null,"wybierz","wybierz","wybierz","wybierz","wybierz",null,null,null,null,null,null,null,null,null,null,null,null,null,null,null,null,57,"żeglarstwo"]
[1,{"$f":"SUBTOTAL(109,$A$4:A60)","v":57},null,null,null,"wybierz","wybierz","wybierz","wybierz","wybierz",null,null,null,null,null,null,null,null,null,null,null,null,null,null,null,null,58,"inne"]
[1,{"$f":"SUBTOTAL(109,$A$4:A61)","v":58},null,null,null,"wybierz","wybierz","wybierz","wybierz","wybierz",null,null,null,null,null,null,null,null,null,null,null,null,null,null,null,null,59]
[1,{"$f":"SUBTOTAL(109,$A$4:A62)","v":59},null,null,null,"wybierz","wybierz","wybierz","wybierz","wybierz"]
[1,{"$f":"SUBTOTAL(109,$A$4:A63)","v":60},null,null,null,"wybierz","wybierz","wybierz","wybierz","wybierz"]

{"sheet":"Obecności sem 1","index":2,"n_rows":63,"n_cols":186,"rows_kept":63,"cut":false,"hidden":false,"merged":[[0,156,0,185],[0,5,0,35],[0,36,0,63],[0,64,0,94],[0,95,0,124],[0,125,0,155]]}
[null,null,null,null,null,"styczeń",null,null,null,null,null,null,null,null,null,null,null,null,null,null,null,null,null,null,null,null,null,null,null,null,null,null,null,null,null,null,"luty",null,null,null,null,null,null,null,null,null,null,null,null,null,null,null,null,null,null,null,null,null,null,null,null,null,null,null,"marzec",null,null,null,null,null,null,null,null,null,null,null,null,null,null,null,null,null,null,null,null,null,null,null,null,null,null,null,null,null,null,"kwiecień",null,null,null,null,null,null,null,null,null,null,null,null,null,null,null,null,null,null,null,null,null,null,null,null,null,null,null,null,null,"maj",null,null,null,null,null,null,null,null,null,null,null,null,null,null,null,null,null,null,null,null,null,null,null,null,null,null,null,null,null,null,"czerwiec"]
[null,null,"Instrukcja wpisywania tematu zajęć","Instrukcja wypełniania \nlisty obecności",null,{"$f":"TEXT(F3,\"dddd\")","v":"niedziela"},{"$f":"TEXT(G3,\"dddd\")","v":"poniedziałek"},"wtorek","środa","czwartek","piątek","sobota","niedziela","poniedziałek","wtorek","środa","czwartek","piątek","sobota","niedziela","poniedziałek","wtorek","środa","czwartek","piątek","sobota","niedziela","poniedziałek","wtorek","środa","czwartek","piątek","sobota","niedziela","poniedziałek","wtorek","środa","czwartek","piątek","sobota",{"$f":"TEXT(AO3,\"dddd\")","v":"niedziela"},{"$f":"TEXT(AP3,\"dddd\")","v":"poniedziałek"},{"$f":"TEXT(AQ3,\"dddd\")","v":"wtorek"},{"$f":"TEXT(AR3,\"dddd\")","v":"środa"},{"$f":"TEXT(AS3,\"dddd\")","v":"czwartek"},{"$f":"TEXT(AT3,\"dddd\")","v":"piątek"},{"$f":"TEXT(AU3,\"dddd\")","v":"sobota"},{"$f":"TEXT(AV3,\"dddd\")","v":"niedziela"},{"$f":"TEXT(AW3,\"dddd\")","v":"poniedziałek"},{"$f":"TEXT(AX3,\"dddd\")","v":"wtorek"},{"$f":"TEXT(AY3,\"dddd\")","v":"środa"},{"$f":"TEXT(AZ3,\"dddd\")","v":"czwartek"},{"$f":"TEXT(BA3,\"dddd\")","v":"piątek"},{"$f":"TEXT(BB3,\"dddd\")","v":"sobota"},{"$f":"TEXT(BC3,\"dddd\")","v":"niedziela"},{"$f":"TEXT(BD3,\"dddd\")","v":"poniedziałek"},{"$f":"TEXT(BE3,\"dddd\")","v":"wtorek"},{"$f":"TEXT(BF3,\"dddd\")","v":"środa"},{"$f":"TEXT(BG3,\"dddd\")","v":"czwartek"},{"$f":"TEXT(BH3,\"dddd\")","v":"piątek"},{"$f":"TEXT(BI3,\"dddd\")","v":"sobota"},{"$f":"TEXT(BJ3,\"dddd\")","v":"niedziela"},{"$f":"TEXT(BK3,\"dddd\")","v":"poniedziałek"},{"$f":"TEXT(BL3,\"dddd\")","v":"wtorek"},{"$f":"TEXT(BM3,\"dddd\")","v":"środa"},{"$f":"TEXT(BN3,\"dddd\")","v":"czwartek"},{"$f":"TEXT(BO3,\"dddd\")","v":"piątek"},{"$f":"TEXT(BP3,\"dddd\")","v":"sobota"},{"$f":"TEXT(BQ3,\"dddd\")","v":"niedziela"},{"$f":"TEXT(BR3,\"dddd\")","v":"poniedziałek"},{"$f":"TEXT(BS3,\"dddd\")","v":"wtorek"},{"$f":"TEXT(BT3,\"dddd\")","v":"środa"},{"$f":"TEXT(BU3,\"dddd\")","v":"czwartek"},{"$f":"TEXT(BV3,\"dddd\")","v":"piątek"},{"$f":"TEXT(BW3,\"dddd\")","v":"sobota"},{"$f":"TEXT(BX3,\"dddd\")","v":"niedziela"},{"$f":"TEXT(BY3,\"dddd\")","v":"poniedziałek"},{"$f":"TEXT(BZ3,\"dddd\")","v":"wtorek"},{"$f":"TEXT(CA3,\"dddd\")","v":"środa"},{"$f":"TEXT(CB3,\"dddd\")","v":"czwartek"},{"$f":"TEXT(CC3,\"dddd\")","v":"piątek"},{"$f":"TEXT(CD3,\"dddd\")","v":"sobota"},{"$f":"TEXT(CE3,\"dddd\")","v":"niedziela"},{"$f":"TEXT(CF3,\"dddd\")","v":"poniedziałek"},{"$f":"TEXT(CG3,\"dddd\")","v":"wtorek"},{"$f":"TEXT(CH3,\"dddd\")","v":"środa"},{"$f":"TEXT(CI3,\"dddd\")","v":"czwartek"},{"$f":"TEXT(CJ3,\"dddd\")","v":"piątek"},{"$f":"TEXT(CK3,\"dddd\")","v":"sobota"},{"$f":"TEXT(CL3,\"dddd\")","v":"niedziela"},{"$f":"TEXT(CM3,\"dddd\")","v":"poniedziałek"},{"$f":"TEXT(CN3,\"dddd\")","v":"wtorek"},{"$f":"TEXT(CO3,\"dddd\")","v":"środa"},{"$f":"TEXT(CP3,\"dddd\")","v":"czwartek"},{"$f":"TEXT(CQ3,\"dddd\")","v":"piątek"},{"$f":"TEXT(CR3,\"dddd\")","v":"sobota"},{"$f":"TEXT(CS3,\"dddd\")","v":"niedziela"},{"$f":"TEXT(CT3,\"dddd\")","v":"poniedziałek"},{"$f":"TEXT(CU3,\"dddd\")","v":"wtorek"},{"$f":"TEXT(CV3,\"dddd\")","v":"środa"},{"$f":"TEXT(CW3,\"dddd\")","v":"czwartek"},{"$f":"TEXT(CX3,\"dddd\")","v":"piątek"},{"$f":"TEXT(CY3,\"dddd\")","v":"sobota"},{"$f":"TEXT(CZ3,\"dddd\")","v":"niedziela"},{"$f":"TEXT(DA3,\"dddd\")","v":"poniedziałek"},{"$f":"TEXT(DB3,\"dddd\")","v":"wtorek"},{"$f":"TEXT(DC3,\"dddd\")","v":"środa"},{"$f":"TEXT(DD3,\"dddd\")","v":"czwartek"},{"$f":"TEXT(DE3,\"dddd\")","v":"piątek"},{"$f":"TEXT(DF3,\"dddd\")","v":"sobota"},{"$f":"TEXT(DG3,\"dddd\")","v":"niedziela"},{"$f":"TEXT(DH3,\"dddd\")","v":"poniedziałek"},{"$f":"TEXT(DI3,\"dddd\")","v":"wtorek"},{"$f":"TEXT(DJ3,\"dddd\")","v":"środa"},{"$f":"TEXT(DK3,\"dddd\")","v":"czwartek"},{"$f":"TEXT(DL3,\"dddd\")","v":"piątek"},{"$f":"TEXT(DM3,\"dddd\")","v":"sobota"},{"$f":"TEXT(DN3,\"dddd\")","v":"niedziela"},{"$f":"TEXT(DO3,\"dddd\")","v":"poniedziałek"},{"$f":"TEXT(DP3,\"dddd\")","v":"wtorek"},{"$f":"TEXT(DQ3,\"dddd\")","v":"środa"},{"$f":"TEXT(DR3,\"dddd\")","v":"czwartek"},{"$f":"TEXT(DS3,\"dddd\")","v":"piątek"},{"$f":"TEXT(DT3,\"dddd\")","v":"sobota"},{"$f":"TEXT(DU3,\"dddd\")","v":"niedziela"},{"$f":"TEXT(DV3,\"dddd\")","v":"poniedziałek"},{"$f":"TEXT(DW3,\"dddd\")","v":"wtorek"},{"$f":"TEXT(DX3,\"dddd\")","v":"środa"},{"$f":"TEXT(DY3,\"dddd\")","v":"czwartek"},{"$f":"TEXT(DZ3,\"dddd\")","v":"piątek"},{"$f":"TEXT(EA3,\"dddd\")","v":"sobota"},{"$f":"TEXT(EB3,\"dddd\")","v":"niedziela"},{"$f":"TEXT(EC3,\"dddd\")","v":"poniedziałek"},{"$f":"TEXT(ED3,\"dddd\")","v":"wtorek"},{"$f":"TEXT(EE3,\"dddd\")","v":"środa"},{"$f":"TEXT(EF3,\"dddd\")","v":"czwartek"},{"$f":"TEXT(EG3,\"dddd\")","v":"piątek"},{"$f":"TEXT(EH3,\"dddd\")","v":"sobota"},{"$f":"TEXT(EI3,\"dddd\")","v":"niedziela"},{"$f":"TEXT(EJ3,\"dddd\")","v":"poniedziałek"},{"$f":"TEXT(EK3,\"dddd\")","v":"wtorek"},{"$f":"TEXT(EL3,\"dddd\")","v":"środa"},{"$f":"TEXT(EM3,\"dddd\")","v":"czwartek"},{"$f":"TEXT(EN3,\"dddd\")","v":"piątek"},{"$f":"TEXT(EO3,\"dddd\")","v":"sobota"},{"$f":"TEXT(EP3,\"dddd\")","v":"niedziela"},{"$f":"TEXT(EQ3,\"dddd\")","v":"poniedziałek"},{"$f":"TEXT(ER3,\"dddd\")","v":"wtorek"},{"$f":"TEXT(ES3,\"dddd\")","v":"środa"},{"$f":"TEXT(ET3,\"dddd\")","v":"czwartek"},{"$f":"TEXT(EU3,\"dddd\")","v":"piątek"},{"$f":"TEXT(EV3,\"dddd\")","v":"sobota"},{"$f":"TEXT(EW3,\"dddd\")","v":"niedziela"},{"$f":"TEXT(EX3,\"dddd\")","v":"poniedziałek"},{"$f":"TEXT(EY3,\"dddd\")","v":"wtorek"},{"$f":"TEXT(EZ3,\"dddd\")","v":"środa"},{"$f":"TEXT(FA3,\"dddd\")","v":"czwartek"},{"$f":"TEXT(FB3,\"dddd\")","v":"piątek"},{"$f":"TEXT(FC3,\"dddd\")","v":"sobota"},{"$f":"TEXT(FD3,\"dddd\")","v":"niedziela"},{"$f":"TEXT(FE3,\"dddd\")","v":"poniedziałek"},{"$f":"TEXT(FF3,\"dddd\")","v":"wtorek"},{"$f":"TEXT(FG3,\"dddd\")","v":"środa"},{"$f":"TEXT(FH3,\"dddd\")","v":"czwartek"},{"$f":"TEXT(FI3,\"dddd\")","v":"piątek"},{"$f":"TEXT(FJ3,\"dddd\")","v":"sobota"},{"$f":"TEXT(FK3,\"dddd\")","v":"niedziela"},{"$f":"TEXT(FL3,\"dddd\")","v":"poniedziałek"},{"$f":"TEXT(FM3,\"dddd\")","v":"wtorek"},{"$f":"TEXT(FN3,\"dddd\")","v":"środa"},{"$f":"TEXT(FO3,\"dddd\")","v":"czwartek"},{"$f":"TEXT(FP3,\"dddd\")","v":"piątek"},{"$f":"TEXT(FQ3,\"dddd\")","v":"sobota"},{"$f":"TEXT(FR3,\"dddd\")","v":"niedziela"},{"$f":"TEXT(FS3,\"dddd\")","v":"poniedziałek"},{"$f":"TEXT(FT3,\"dddd\")","v":"wtorek"},{"$f":"TEXT(FU3,\"dddd\")","v":"środa"},{"$f":"TEXT(FV3,\"dddd\")","v":"czwartek"},{"$f":"TEXT(FW3,\"dddd\")","v":"piątek"},{"$f":"TEXT(FX3,\"dddd\")","v":"sobota"},{"$f":"TEXT(FY3,\"dddd\")","v":"niedziela"},{"$f":"TEXT(FZ3,\"dddd\")","v":"poniedziałek"},{"$f":"TEXT(GA3,\"dddd\")","v":"wtorek"},{"$f":"TEXT(GB3,\"dddd\")","v":"środa"},{"$f":"TEXT(GC3,\"dddd\")","v":"czwartek"},{"$f":"TEXT(GD3,\"dddd\")","v":"piątek"}]
[null,"lp.","imię","nazwisko","grupa","2017-01-01","2017-01-02","2017-01-03","2017-01-04","2017-01-05","2017-01-06","2017-01-07","2017-01-08","2017-01-09","2017-01-10","2017-01-11","2017-01-12","2017-01-13","2017-01-14","2017-01-15","2017-01-16","2017-01-17","2017-01-18","2017-01-19","2017-01-20","2017-01-21","2017-01-22","2017-01-23","2017-01-24","2017-01-25","2017-01-26","2017-01-27","2017-01-28","2017-01-29","2017-01-30","2017-01-31","2017-02-01","2017-02-02","2017-02-03","2017-02-04","2017-02-05","2017-02-06","2017-02-07","2017-02-08","2017-02-09","2017-02-10","2017-02-11","2017-02-12","2017-02-13","2017-02-14","2017-02-15","2017-02-16","2017-02-17","2017-02-18","2017-02-19","2017-02-20","2017-02-21","2017-02-22","2017-02-23","2017-02-24","2017-02-25","2017-02-26","2017-02-27","2017-02-28","2017-03-01","2017-03-02","2017-03-03","2017-03-04","2017-03-05","2017-03-06","2017-03-07","2017-03-08","2017-03-09","2017-03-10","2017-03-11","2017-03-12","2017-03-13","2017-03-14","2017-03-15","2017-03-16","2017-03-17","2017-03-18","2017-03-19","2017-03-20","2017-03-21","2017-03-22","2017-03-23","2017-03-24","2017-03-25","2017-03-26","2017-03-27","2017-03-28","2017-03-29","2017-03-30","2017-03-31","2017-04-01","2017-04-02","2017-04-03","2017-04-04","2017-04-05","2017-04-06","2017-04-07","2017-04-08","2017-04-09","2017-04-10","2017-04-11","2017-04-12","2017-04-13","2017-04-14","2017-04-15","2017-04-16","2017-04-17","2017-04-18","2017-04-19","2017-04-20","2017-04-21","2017-04-22","2017-04-23","2017-04-24","2017-04-25","2017-04-26","2017-04-27","2017-04-28","2017-04-29","2017-04-30","2017-05-01","2017-05-02","2017-05-03","2017-05-04","2017-05-05","2017-05-06","2017-05-07","2017-05-08","2017-05-09","2017-05-10","2017-05-11","2017-05-12","2017-05-13","2017-05-14","2017-05-15","2017-05-16","2017-05-17","2017-05-18","2017-05-19","2017-05-20","2017-05-21","2017-05-22","2017-05-23","2017-05-24","2017-05-25","2017-05-26","2017-05-27","2017-05-28","2017-05-29","2017-05-30","2017-05-31","2017-06-01","2017-06-02","2017-06-03","2017-06-04","2017-06-05","2017-06-06","2017-06-07","2017-06-08","2017-06-09","2017-06-10","2017-06-11","2017-06-12","2017-06-13","2017-06-14","2017-06-15","2017-06-16","2017-06-17","2017-06-18","2017-06-19","2017-06-20","2017-06-21","2017-06-22","2017-06-23","2017-06-24","2017-06-25","2017-06-26","2017-06-27","2017-06-28","2017-06-29","2017-06-30"]
[1,{"$f":"SUBTOTAL(109,A4)","v":1},{"$f":"IF('Dane_uczestników sem 1'!C4<>\"\",'Dane_uczestników sem 1'!C4,\"\")","v":""},{"$f":"IF('Dane_uczestników sem 1'!D4<>\"\",'Dane_uczestników sem 1'!D4,\"\")","v":""},{"$f":"IF('Dane_uczestników sem 1'!G4<>\"wybierz\",'Dane_uczestników sem 1'!G4,\"\")","v":""}]
[1,{"$f":"SUBTOTAL(109,$A$4:A5)","v":2},{"$f":"IF('Dane_uczestników sem 1'!C5<>\"\",'Dane_uczestników sem 1'!C5,\"\")","v":""},{"$f":"IF('Dane_uczestników sem 1'!D5<>\"\",'Dane_uczestników sem 1'!D5,\"\")","v":""},{"$f":"IF('Dane_uczestników sem 1'!G5<>\"wybierz\",'Dane_uczestników sem 1'!G5,\"\")","v":""}]
[1,{"$f":"SUBTOTAL(109,$A$4:A6)","v":3},{"$f":"IF('Dane_uczestników sem 1'!C6<>\"\",'Dane_uczestników sem 1'!C6,\"\")","v":""},{"$f":"IF('Dane_uczestników sem 1'!D6<>\"\",'Dane_uczestników sem 1'!D6,\"\")","v":""},{"$f":"IF('Dane_uczestników sem 1'!G6<>\"wybierz\",'Dane_uczestników sem 1'!G6,\"\")","v":""}]
[1,{"$f":"SUBTOTAL(109,$A$4:A7)","v":4},{"$f":"IF('Dane_uczestników sem 1'!C7<>\"\",'Dane_uczestników sem 1'!C7,\"\")","v":""},{"$f":"IF('Dane_uczestników sem 1'!D7<>\"\",'Dane_uczestników sem 1'!D7,\"\")","v":""},{"$f":"IF('Dane_uczestników sem 1'!G7<>\"wybierz\",'Dane_uczestników sem 1'!G7,\"\")","v":""}]
[1,{"$f":"SUBTOTAL(109,$A$4:A8)","v":5},{"$f":"IF('Dane_uczestników sem 1'!C8<>\"\",'Dane_uczestników sem 1'!C8,\"\")","v":""},{"$f":"IF('Dane_uczestników sem 1'!D8<>\"\",'Dane_uczestników sem 1'!D8,\"\")","v":""},{"$f":"IF('Dane_uczestników sem 1'!G8<>\"wybierz\",'Dane_uczestników sem 1'!G8,\"\")","v":""},null,null,null,null,null,null,null,null,null,null,null,null,null,null,null,null,null,null,null,null,null,null,null,null,null,null,null,null,null,null,null,null,null,null,null,null,null,null,null,null,null,null,null,null,null,null,null,null,null,null,null,null,null,null,null,null,null,null,null,null,null,null,null,null,null,null,null,null,null,null,null,null,null,null,null,null,null,null,null,null,null,null,null,null,null,null,null,null,null,null,null,null,null,null,null,null,null,null,null,null,null,null,null,null,null,null,null,null,null,null,null,null,null,null,null,null,null,null,null,null,null,null,null,null,null,null,null,null,null,null,null,null,null,null,null,null,null,null,null,null,null,null,null,null,null,null,null,null,null,null,null,null,null,"+"]
[1,{"$f":"SUBTOTAL(109,$A$4:A9)","v":6},{"$f":"IF('Dane_uczestników sem 1'!C9<>\"\",'Dane_uczestników sem 1'!C9,\"\")","v":""},{"$f":"IF('Dane_uczestników sem 1'!D9<>\"\",'Dane_uczestników sem 1'!D9,\"\")","v":""},{"$f":"IF('Dane_uczestników sem 1'!G9<>\"wybierz\",'Dane_uczestników sem 1'!G9,\"\")","v":""}]
[1,{"$f":"SUBTOTAL(109,$A$4:A10)","v":7},{"$f":"IF('Dane_uczestników sem 1'!C10<>\"\",'Dane_uczestników sem 1'!C10,\"\")","v":""},{"$f":"IF('Dane_uczestników sem 1'!D10<>\"\",'Dane_uczestników sem 1'!D10,\"\")","v":""},{"$f":"IF('Dane_uczestników sem 1'!G10<>\"wybierz\",'Dane_uczestników sem 1'!G10,\"\")","v":""}]
[1,{"$f":"SUBTOTAL(109,$A$4:A11)","v":8},{"$f":"IF('Dane_uczestników sem 1'!C11<>\"\",'Dane_uczestników sem 1'!C11,\"\")","v":""},{"$f":"IF('Dane_uczestników sem 1'!D11<>\"\",'Dane_uczestników sem 1'!D11,\"\")","v":""},{"$f":"IF('Dane_uczestników sem 1'!G11<>\"wybierz\",'Dane_uczestników sem 1'!G11,\"\")","v":""}]
[1,{"$f":"SUBTOTAL(109,$A$4:A12)","v":9},{"$f":"IF('Dane_uczestników sem 1'!C12<>\"\",'Dane_uczestników sem 1'!C12,\"\")","v":""},{"$f":"IF('Dane_uczestników sem 1'!D12<>\"\",'Dane_uczestników sem 1'!D12,\"\")","v":""},{"$f":"IF('Dane_uczestników sem 1'!G12<>\"wybierz\",'Dane_uczestników sem 1'!G12,\"\")","v":""}]
[1,{"$f":"SUBTOTAL(109,$A$4:A13)","v":10},{"$f":"IF('Dane_uczestników sem 1'!C13<>\"\",'Dane_uczestników sem 1'!C13,\"\")","v":""},{"$f":"IF('Dane_uczestników sem 1'!D13<>\"\",'Dane_uczestników sem 1'!D13,\"\")","v":""},{"$f":"IF('Dane_uczestników sem 1'!G13<>\"wybierz\",'Dane_uczestników sem 1'!G13,\"\")","v":""}]
[1,{"$f":"SUBTOTAL(109,$A$4:A14)","v":11},{"$f":"IF('Dane_uczestników sem 1'!C14<>\"\",'Dane_uczestników sem 1'!C14,\"\")","v":""},{"$f":"IF('Dane_uczestników sem 1'!D14<>\"\",'Dane_uczestników sem 1'!D14,\"\")","v":""},{"$f":"IF('Dane_uczestników sem 1'!G14<>\"wybierz\",'Dane_uczestników sem 1'!G14,\"\")","v":""}]
[1,{"$f":"SUBTOTAL(109,$A$4:A15)","v":12},{"$f":"IF('Dane_uczestników sem 1'!C15<>\"\",'Dane_uczestników sem 1'!C15,\"\")","v":""},{"$f":"IF('Dane_uczestników sem 1'!D15<>\"\",'Dane_uczestników sem 1'!D15,\"\")","v":""},{"$f":"IF('Dane_uczestników sem 1'!G15<>\"wybierz\",'Dane_uczestników sem 1'!G15,\"\")","v":""}]
[1,{"$f":"SUBTOTAL(109,$A$4:A16)","v":13},{"$f":"IF('Dane_uczestników sem 1'!C16<>\"\",'Dane_uczestników sem 1'!C16,\"\")","v":""},{"$f":"IF('Dane_uczestników sem 1'!D16<>\"\",'Dane_uczestników sem 1'!D16,\"\")","v":""},{"$f":"IF('Dane_uczestników sem 1'!G16<>\"wybierz\",'Dane_uczestników sem 1'!G16,\"\")","v":""}]
[1,{"$f":"SUBTOTAL(109,$A$4:A17)","v":14},{"$f":"IF('Dane_uczestników sem 1'!C17<>\"\",'Dane_uczestników sem 1'!C17,\"\")","v":""},{"$f":"IF('Dane_uczestników sem 1'!D17<>\"\",'Dane_uczestników sem 1'!D17,\"\")","v":""},{"$f":"IF('Dane_uczestników sem 1'!G17<>\"wybierz\",'Dane_uczestników sem 1'!G17,\"\")","v":""}]
[1,{"$f":"SUBTOTAL(109,$A$4:A18)","v":15},{"$f":"IF('Dane_uczestników sem 1'!C18<>\"\",'Dane_uczestników sem 1'!C18,\"\")","v":""},{"$f":"IF('Dane_uczestników sem 1'!D18<>\"\",'Dane_uczestników sem 1'!D18,\"\")","v":""},{"$f":"IF('Dane_uczestników sem 1'!G18<>\"wybierz\",'Dane_uczestników sem 1'!G18,\"\")","v":""}]
[1,{"$f":"SUBTOTAL(109,$A$4:A19)","v":16},{"$f":"IF('Dane_uczestników sem 1'!C19<>\"\",'Dane_uczestników sem 1'!C19,\"\")","v":""},{"$f":"IF('Dane_uczestników sem 1'!D19<>\"\",'Dane_uczestników sem 1'!D19,\"\")","v":""},{"$f":"IF('Dane_uczestników sem 1'!G19<>\"wybierz\",'Dane_uczestników sem 1'!G19,\"\")","v":""}]
[1,{"$f":"SUBTOTAL(109,$A$4:A20)","v":17},{"$f":"IF('Dane_uczestników sem 1'!C20<>\"\",'Dane_uczestników sem 1'!C20,\"\")","v":""},{"$f":"IF('Dane_uczestników sem 1'!D20<>\"\",'Dane_uczestników sem 1'!D20,\"\")","v":""},{"$f":"IF('Dane_uczestników sem 1'!G20<>\"wybierz\",'Dane_uczestników sem 1'!G20,\"\")","v":""}]
[1,{"$f":"SUBTOTAL(109,$A$4:A21)","v":18},{"$f":"IF('Dane_uczestników sem 1'!C21<>\"\",'Dane_uczestników sem 1'!C21,\"\")","v":""},{"$f":"IF('Dane_uczestników sem 1'!D21<>\"\",'Dane_uczestników sem 1'!D21,\"\")","v":""},{"$f":"IF('Dane_uczestników sem 1'!G21<>\"wybierz\",'Dane_uczestników sem 1'!G21,\"\")","v":""}]
[1,{"$f":"SUBTOTAL(109,$A$4:A22)","v":19},{"$f":"IF('Dane_uczestników sem 1'!C22<>\"\",'Dane_uczestników sem 1'!C22,\"\")","v":""},{"$f":"IF('Dane_uczestników sem 1'!D22<>\"\",'Dane_uczestników sem 1'!D22,\"\")","v":""},{"$f":"IF('Dane_uczestników sem 1'!G22<>\"wybierz\",'Dane_uczestników sem 1'!G22,\"\")","v":""}]
[1,{"$f":"SUBTOTAL(109,$A$4:A23)","v":20},{"$f":"IF('Dane_uczestników sem 1'!C23<>\"\",'Dane_uczestników sem 1'!C23,\"\")","v":""},{"$f":"IF('Dane_uczestników sem 1'!D23<>\"\",'Dane_uczestników sem 1'!D23,\"\")","v":""},{"$f":"IF('Dane_uczestników sem 1'!G23<>\"wybierz\",'Dane_uczestników sem 1'!G23,\"\")","v":""}]
[1,{"$f":"SUBTOTAL(109,$A$4:A24)","v":21},{"$f":"IF('Dane_uczestników sem 1'!C24<>\"\",'Dane_uczestników sem 1'!C24,\"\")","v":""},{"$f":"IF('Dane_uczestników sem 1'!D24<>\"\",'Dane_uczestników sem 1'!D24,\"\")","v":""},{"$f":"IF('Dane_uczestników sem 1'!G24<>\"wybierz\",'Dane_uczestników sem 1'!G24,\"\")","v":""}]
[1,{"$f":"SUBTOTAL(109,$A$4:A25)","v":22},{"$f":"IF('Dane_uczestników sem 1'!C25<>\"\",'Dane_uczestników sem 1'!C25,\"\")","v":""},{"$f":"IF('Dane_uczestników sem 1'!D25<>\"\",'Dane_uczestników sem 1'!D25,\"\")","v":""},{"$f":"IF('Dane_uczestników sem 1'!G25<>\"wybierz\",'Dane_uczestników sem 1'!G25,\"\")","v":""}]
[1,{"$f":"SUBTOTAL(109,$A$4:A26)","v":23},{"$f":"IF('Dane_uczestników sem 1'!C26<>\"\",'Dane_uczestników sem 1'!C26,\"\")","v":""},{"$f":"IF('Dane_uczestników sem 1'!D26<>\"\",'Dane_uczestników sem 1'!D26,\"\")","v":""},{"$f":"IF('Dane_uczestników sem 1'!G26<>\"wybierz\",'Dane_uczestników sem 1'!G26,\"\")","v":""}]
[1,{"$f":"SUBTOTAL(109,$A$4:A27)","v":24},{"$f":"IF('Dane_uczestników sem 1'!C27<>\"\",'Dane_uczestników sem 1'!C27,\"\")","v":""},{"$f":"IF('Dane_uczestników sem 1'!D27<>\"\",'Dane_uczestników sem 1'!D27,\"\")","v":""},{"$f":"IF('Dane_uczestników sem 1'!G27<>\"wybierz\",'Dane_uczestników sem 1'!G27,\"\")","v":""}]
[1,{"$f":"SUBTOTAL(109,$A$4:A28)","v":25},{"$f":"IF('Dane_uczestników sem 1'!C28<>\"\",'Dane_uczestników sem 1'!C28,\"\")","v":""},{"$f":"IF('Dane_uczestników sem 1'!D28<>\"\",'Dane_uczestników sem 1'!D28,\"\")","v":""},{"$f":"IF('Dane_uczestników sem 1'!G28<>\"wybierz\",'Dane_uczestników sem 1'!G28,\"\")","v":""}]
[1,{"$f":"SUBTOTAL(109,$A$4:A29)","v":26},{"$f":"IF('Dane_uczestników sem 1'!C29<>\"\",'Dane_uczestników sem 1'!C29,\"\")","v":""},{"$f":"IF('Dane_uczestników sem 1'!D29<>\"\",'Dane_uczestników sem 1'!D29,\"\")","v":""},{"$f":"IF('Dane_uczestników sem 1'!G29<>\"wybierz\",'Dane_uczestników sem 1'!G29,\"\")","v":""}]
[1,{"$f":"SUBTOTAL(109,$A$4:A30)","v":27},{"$f":"IF('Dane_uczestników sem 1'!C30<>\"\",'Dane_uczestników sem 1'!C30,\"\")","v":""},{"$f":"IF('Dane_uczestników sem 1'!D30<>\"\",'Dane_uczestników sem 1'!D30,\"\")","v":""},{"$f":"IF('Dane_uczestników sem 1'!G30<>\"wybierz\",'Dane_uczestników sem 1'!G30,\"\")","v":""}]
[1,{"$f":"SUBTOTAL(109,$A$4:A31)","v":28},{"$f":"IF('Dane_uczestników sem 1'!C31<>\"\",'Dane_uczestników sem 1'!C31,\"\")","v":""},{"$f":"IF('Dane_uczestników sem 1'!D31<>\"\",'Dane_uczestników sem 1'!D31,\"\")","v":""},{"$f":"IF('Dane_uczestników sem 1'!G31<>\"wybierz\",'Dane_uczestników sem 1'!G31,\"\")","v":""}]
[1,{"$f":"SUBTOTAL(109,$A$4:A32)","v":29},{"$f":"IF('Dane_uczestników sem 1'!C32<>\"\",'Dane_uczestników sem 1'!C32,\"\")","v":""},{"$f":"IF('Dane_uczestników sem 1'!D32<>\"\",'Dane_uczestników sem 1'!D32,\"\")","v":""},{"$f":"IF('Dane_uczestników sem 1'!G32<>\"wybierz\",'Dane_uczestników sem 1'!G32,\"\")","v":""}]
[1,{"$f":"SUBTOTAL(109,$A$4:A33)","v":30},{"$f":"IF('Dane_uczestników sem 1'!C33<>\"\",'Dane_uczestników sem 1'!C33,\"\")","v":""},{"$f":"IF('Dane_uczestników sem 1'!D33<>\"\",'Dane_uczestników sem 1'!D33,\"\")","v":""},{"$f":"IF('Dane_uczestników sem 1'!G33<>\"wybierz\",'Dane_uczestników sem 1'!G33,\"\")","v":""}]
[1,{"$f":"SUBTOTAL(109,$A$4:A34)","v":31},{"$f":"IF('Dane_uczestników sem 1'!C34<>\"\",'Dane_uczestników sem 1'!C34,\"\")","v":""},{"$f":"IF('Dane_uczestników sem 1'!D34<>\"\",'Dane_uczestników sem 1'!D34,\"\")","v":""},{"$f":"IF('Dane_uczestników sem 1'!G34<>\"wybierz\",'Dane_uczestników sem 1'!G34,\"\")","v":""}]
[1,{"$f":"SUBTOTAL(109,$A$4:A35)","v":32},{"$f":"IF('Dane_uczestników sem 1'!C35<>\"\",'Dane_uczestników sem 1'!C35,\"\")","v":""},{"$f":"IF('Dane_uczestników sem 1'!D35<>\"\",'Dane_uczestników sem 1'!D35,\"\")","v":""},{"$f":"IF('Dane_uczestników sem 1'!G35<>\"wybierz\",'Dane_uczestników sem 1'!G35,\"\")","v":""}]
[1,{"$f":"SUBTOTAL(109,$A$4:A36)","v":33},{"$f":"IF('Dane_uczestników sem 1'!C36<>\"\",'Dane_uczestników sem 1'!C36,\"\")","v":""},{"$f":"IF('Dane_uczestników sem 1'!D36<>\"\",'Dane_uczestników sem 1'!D36,\"\")","v":""},{"$f":"IF('Dane_uczestników sem 1'!G36<>\"wybierz\",'Dane_uczestników sem 1'!G36,\"\")","v":""}]
[1,{"$f":"SUBTOTAL(109,$A$4:A37)","v":34},{"$f":"IF('Dane_uczestników sem 1'!C37<>\"\",'Dane_uczestników sem 1'!C37,\"\")","v":""},{"$f":"IF('Dane_uczestników sem 1'!D37<>\"\",'Dane_uczestników sem 1'!D37,\"\")","v":""},{"$f":"IF('Dane_uczestników sem 1'!G37<>\"wybierz\",'Dane_uczestników sem 1'!G37,\"\")","v":""}]
[1,{"$f":"SUBTOTAL(109,$A$4:A38)","v":35},{"$f":"IF('Dane_uczestników sem 1'!C38<>\"\",'Dane_uczestników sem 1'!C38,\"\")","v":""},{"$f":"IF('Dane_uczestników sem 1'!D38<>\"\",'Dane_uczestników sem 1'!D38,\"\")","v":""},{"$f":"IF('Dane_uczestników sem 1'!G38<>\"wybierz\",'Dane_uczestników sem 1'!G38,\"\")","v":""}]
[1,{"$f":"SUBTOTAL(109,$A$4:A39)","v":36},{"$f":"IF('Dane_uczestników sem 1'!C39<>\"\",'Dane_uczestników sem 1'!C39,\"\")","v":""},{"$f":"IF('Dane_uczestników sem 1'!D39<>\"\",'Dane_uczestników sem 1'!D39,\"\")","v":""},{"$f":"IF('Dane_uczestników sem 1'!G39<>\"wybierz\",'Dane_uczestników sem 1'!G39,\"\")","v":""}]
[1,{"$f":"SUBTOTAL(109,$A$4:A40)","v":37},{"$f":"IF('Dane_uczestników sem 1'!C40<>\"\",'Dane_uczestników sem 1'!C40,\"\")","v":""},{"$f":"IF('Dane_uczestników sem 1'!D40<>\"\",'Dane_uczestników sem 1'!D40,\"\")","v":""},{"$f":"IF('Dane_uczestników sem 1'!G40<>\"wybierz\",'Dane_uczestników sem 1'!G40,\"\")","v":""}]
[1,{"$f":"SUBTOTAL(109,$A$4:A41)","v":38},{"$f":"IF('Dane_uczestników sem 1'!C41<>\"\",'Dane_uczestników sem 1'!C41,\"\")","v":""},{"$f":"IF('Dane_uczestników sem 1'!D41<>\"\",'Dane_uczestników sem 1'!D41,\"\")","v":""},{"$f":"IF('Dane_uczestników sem 1'!G41<>\"wybierz\",'Dane_uczestników sem 1'!G41,\"\")","v":""}]
[1,{"$f":"SUBTOTAL(109,$A$4:A42)","v":39},{"$f":"IF('Dane_uczestników sem 1'!C42<>\"\",'Dane_uczestników sem 1'!C42,\"\")","v":""},{"$f":"IF('Dane_uczestników sem 1'!D42<>\"\",'Dane_uczestników sem 1'!D42,\"\")","v":""},{"$f":"IF('Dane_uczestników sem 1'!G42<>\"wybierz\",'Dane_uczestników sem 1'!G42,\"\")","v":""}]
[1,{"$f":"SUBTOTAL(109,$A$4:A43)","v":40},{"$f":"IF('Dane_uczestników sem 1'!C43<>\"\",'Dane_uczestników sem 1'!C43,\"\")","v":""},{"$f":"IF('Dane_uczestników sem 1'!D43<>\"\",'Dane_uczestników sem 1'!D43,\"\")","v":""},{"$f":"IF('Dane_uczestników sem 1'!G43<>\"wybierz\",'Dane_uczestników sem 1'!G43,\"\")","v":""}]
[1,{"$f":"SUBTOTAL(109,$A$4:A44)","v":41},{"$f":"IF('Dane_uczestników sem 1'!C44<>\"\",'Dane_uczestników sem 1'!C44,\"\")","v":""},{"$f":"IF('Dane_uczestników sem 1'!D44<>\"\",'Dane_uczestników sem 1'!D44,\"\")","v":""},{"$f":"IF('Dane_uczestników sem 1'!G44<>\"wybierz\",'Dane_uczestników sem 1'!G44,\"\")","v":""}]
[1,{"$f":"SUBTOTAL(109,$A$4:A45)","v":42},{"$f":"IF('Dane_uczestników sem 1'!C45<>\"\",'Dane_uczestników sem 1'!C45,\"\")","v":""},{"$f":"IF('Dane_uczestników sem 1'!D45<>\"\",'Dane_uczestników sem 1'!D45,\"\")","v":""},{"$f":"IF('Dane_uczestników sem 1'!G45<>\"wybierz\",'Dane_uczestników sem 1'!G45,\"\")","v":""}]
[1,{"$f":"SUBTOTAL(109,$A$4:A46)","v":43},{"$f":"IF('Dane_uczestników sem 1'!C46<>\"\",'Dane_uczestników sem 1'!C46,\"\")","v":""},{"$f":"IF('Dane_uczestników sem 1'!D46<>\"\",'Dane_uczestników sem 1'!D46,\"\")","v":""},{"$f":"IF('Dane_uczestników sem 1'!G46<>\"wybierz\",'Dane_uczestników sem 1'!G46,\"\")","v":""}]
[1,{"$f":"SUBTOTAL(109,$A$4:A47)","v":44},{"$f":"IF('Dane_uczestników sem 1'!C47<>\"\",'Dane_uczestników sem 1'!C47,\"\")","v":""},{"$f":"IF('Dane_uczestników sem 1'!D47<>\"\",'Dane_uczestników sem 1'!D47,\"\")","v":""},{"$f":"IF('Dane_uczestników sem 1'!G47<>\"wybierz\",'Dane_uczestników sem 1'!G47,\"\")","v":""}]
[1,{"$f":"SUBTOTAL(109,$A$4:A48)","v":45},{"$f":"IF('Dane_uczestników sem 1'!C48<>\"\",'Dane_uczestników sem 1'!C48,\"\")","v":""},{"$f":"IF('Dane_uczestników sem 1'!D48<>\"\",'Dane_uczestników sem 1'!D48,\"\")","v":""},{"$f":"IF('Dane_uczestników sem 1'!G48<>\"wybierz\",'Dane_uczestników sem 1'!G48,\"\")","v":""}]
[1,{"$f":"SUBTOTAL(109,$A$4:A49)","v":46},{"$f":"IF('Dane_uczestników sem 1'!C49<>\"\",'Dane_uczestników sem 1'!C49,\"\")","v":""},{"$f":"IF('Dane_uczestników sem 1'!D49<>\"\",'Dane_uczestników sem 1'!D49,\"\")","v":""},{"$f":"IF('Dane_uczestników sem 1'!G49<>\"wybierz\",'Dane_uczestników sem 1'!G49,\"\")","v":""}]
[1,{"$f":"SUBTOTAL(109,$A$4:A50)","v":47},{"$f":"IF('Dane_uczestników sem 1'!C50<>\"\",'Dane_uczestników sem 1'!C50,\"\")","v":""},{"$f":"IF('Dane_uczestników sem 1'!D50<>\"\",'Dane_uczestników sem 1'!D50,\"\")","v":""},{"$f":"IF('Dane_uczestników sem 1'!G50<>\"wybierz\",'Dane_uczestników sem 1'!G50,\"\")","v":""}]
[1,{"$f":"SUBTOTAL(109,$A$4:A51)","v":48},{"$f":"IF('Dane_uczestników sem 1'!C51<>\"\",'Dane_uczestników sem 1'!C51,\"\")","v":""},{"$f":"IF('Dane_uczestników sem 1'!D51<>\"\",'Dane_uczestników sem 1'!D51,\"\")","v":""},{"$f":"IF('Dane_uczestników sem 1'!G51<>\"wybierz\",'Dane_uczestników sem 1'!G51,\"\")","v":""}]
[1,{"$f":"SUBTOTAL(109,$A$4:A52)","v":49},{"$f":"IF('Dane_uczestników sem 1'!C52<>\"\",'Dane_uczestników sem 1'!C52,\"\")","v":""},{"$f":"IF('Dane_uczestników sem 1'!D52<>\"\",'Dane_uczestników sem 1'!D52,\"\")","v":""},{"$f":"IF('Dane_uczestników sem 1'!G52<>\"wybierz\",'Dane_uczestników sem 1'!G52,\"\")","v":""}]
[1,{"$f":"SUBTOTAL(109,$A$4:A53)","v":50},{"$f":"IF('Dane_uczestników sem 1'!C53<>\"\",'Dane_uczestników sem 1'!C53,\"\")","v":""},{"$f":"IF('Dane_uczestników sem 1'!D53<>\"\",'Dane_uczestników sem 1'!D53,\"\")","v":""},{"$f":"IF('Dane_uczestników sem 1'!G53<>\"wybierz\",'Dane_uczestników sem 1'!G53,\"\")","v":""}]
[1,{"$f":"SUBTOTAL(109,$A$4:A54)","v":51},{"$f":"IF('Dane_uczestników sem 1'!C54<>\"\",'Dane_uczestników sem 1'!C54,\"\")","v":""},{"$f":"IF('Dane_uczestników sem 1'!D54<>\"\",'Dane_uczestników sem 1'!D54,\"\")","v":""},{"$f":"IF('Dane_uczestników sem 1'!G54<>\"wybierz\",'Dane_uczestników sem 1'!G54,\"\")","v":""}]
[1,{"$f":"SUBTOTAL(109,$A$4:A55)","v":52},{"$f":"IF('Dane_uczestników sem 1'!C55<>\"\",'Dane_uczestników sem 1'!C55,\"\")","v":""},{"$f":"IF('Dane_uczestników sem 1'!D55<>\"\",'Dane_uczestników sem 1'!D55,\"\")","v":""},{"$f":"IF('Dane_uczestników sem 1'!G55<>\"wybierz\",'Dane_uczestników sem 1'!G55,\"\")","v":""}]
[1,{"$f":"SUBTOTAL(109,$A$4:A56)","v":53},{"$f":"IF('Dane_uczestników sem 1'!C56<>\"\",'Dane_uczestników sem 1'!C56,\"\")","v":""},{"$f":"IF('Dane_uczestników sem 1'!D56<>\"\",'Dane_uczestników sem 1'!D56,\"\")","v":""},{"$f":"IF('Dane_uczestników sem 1'!G56<>\"wybierz\",'Dane_uczestników sem 1'!G56,\"\")","v":""}]
[1,{"$f":"SUBTOTAL(109,$A$4:A57)","v":54},{"$f":"IF('Dane_uczestników sem 1'!C57<>\"\",'Dane_uczestników sem 1'!C57,\"\")","v":""},{"$f":"IF('Dane_uczestników sem 1'!D57<>\"\",'Dane_uczestników sem 1'!D57,\"\")","v":""},{"$f":"IF('Dane_uczestników sem 1'!G57<>\"wybierz\",'Dane_uczestników sem 1'!G57,\"\")","v":""}]
[1,{"$f":"SUBTOTAL(109,$A$4:A58)","v":55},{"$f":"IF('Dane_uczestników sem 1'!C58<>\"\",'Dane_uczestników sem 1'!C58,\"\")","v":""},{"$f":"IF('Dane_uczestników sem 1'!D58<>\"\",'Dane_uczestników sem 1'!D58,\"\")","v":""},{"$f":"IF('Dane_uczestników sem 1'!G58<>\"wybierz\",'Dane_uczestników sem 1'!G58,\"\")","v":""}]
[1,{"$f":"SUBTOTAL(109,$A$4:A59)","v":56},{"$f":"IF('Dane_uczestników sem 1'!C59<>\"\",'Dane_uczestników sem 1'!C59,\"\")","v":""},{"$f":"IF('Dane_uczestników sem 1'!D59<>\"\",'Dane_uczestników sem 1'!D59,\"\")","v":""},{"$f":"IF('Dane_uczestników sem 1'!G59<>\"wybierz\",'Dane_uczestników sem 1'!G59,\"\")","v":""}]
[1,{"$f":"SUBTOTAL(109,$A$4:A60)","v":57},{"$f":"IF('Dane_uczestników sem 1'!C60<>\"\",'Dane_uczestników sem 1'!C60,\"\")","v":""},{"$f":"IF('Dane_uczestników sem 1'!D60<>\"\",'Dane_uczestników sem 1'!D60,\"\")","v":""},{"$f":"IF('Dane_uczestników sem 1'!G60<>\"wybierz\",'Dane_uczestników sem 1'!G60,\"\")","v":""}]
[1,{"$f":"SUBTOTAL(109,$A$4:A61)","v":58},{"$f":"IF('Dane_uczestników sem 1'!C61<>\"\",'Dane_uczestników sem 1'!C61,\"\")","v":""},{"$f":"IF('Dane_uczestników sem 1'!D61<>\"\",'Dane_uczestników sem 1'!D61,\"\")","v":""},{"$f":"IF('Dane_uczestników sem 1'!G61<>\"wybierz\",'Dane_uczestników sem 1'!G61,\"\")","v":""}]
[1,{"$f":"SUBTOTAL(109,$A$4:A62)","v":59},{"$f":"IF('Dane_uczestników sem 1'!C62<>\"\",'Dane_uczestników sem 1'!C62,\"\")","v":""},{"$f":"IF('Dane_uczestników sem 1'!D62<>\"\",'Dane_uczestników sem 1'!D62,\"\")","v":""},{"$f":"IF('Dane_uczestników sem 1'!G62<>\"wybierz\",'Dane_uczestników sem 1'!G62,\"\")","v":""}]
[1,{"$f":"SUBTOTAL(109,$A$4:A63)","v":60},{"$f":"IF('Dane_uczestników sem 1'!C63<>\"\",'Dane_uczestników sem 1'!C63,\"\")","v":""},{"$f":"IF('Dane_uczestników sem 1'!D63<>\"\",'Dane_uczestników sem 1'!D63,\"\")","v":""},{"$f":"IF('Dane_uczestników sem 1'!G63<>\"wybierz\",'Dane_uczestników sem 1'!G63,\"\")","v":""}]